Workbook

Sheet EDI
L1: Modèle n° ADC082F-15I
A2: RAISON SOCIAL | C2: ALIMA FOOD
A3: ID_FISCAL | C3: 40379671
A4: ANNEE | C4: 2016
A5: PERIODE(Mois) | C5: 4 | F5: Relevé de déduction
A6: REGIME(Encais-1) | C6: 1 | F6: (Article 112 du Code Général des Impôts)
A8: OR | B8: FACT_NUM | C8: DESIGNATION | D8: M_HT | E8: TVA | F8: M_TTC | G8: IF | H8: LIB_FRSS | I8: ICE_FRS | J8: TAUX | K8: ID_PAIE | L8: DATE_PAIE | M8: DATE_FAC
A9: 1 | B9: 7201 | C9: MARCHANDISE | D9: 195510 | E9: =+Tableau5[[#This Row],[M_HT]]*Tableau5[[#This Row],[TAUX]] -> 39102 | F9: =+Tableau5[[#This Row],[M_HT]]+Tableau5[[#This Row],[TVA]] -> 234612 | G9: 4100688 | H9: LES CONSERVES | I9: 001529756000069 | J9: 0.2 | K9: 5 | L9: 2016-04-06 | M9: 2016-02-02
A10: 2 | B10: AV9343 | C10: MARCHANDISE | D10: -822.16 | E10: =+Tableau5[[#This Row],[M_HT]]*Tableau5[[#This Row],[TAUX]] -> -164.432 | F10: =+Tableau5[[#This Row],[M_HT]]+Tableau5[[#This Row],[TVA]] -> -986.592 | G10: 4100688 | H10: LES CONSERVES | I10: 001529756000069 | J10: 0.2 | K10: 5 | L10: 2016-04-06 | M10: 2016-02-02
A11: 3 | B11: 0767 | C11: MARCHANDISE | D11: 142290.91 | E11: =+Tableau5[[#This Row],[M_HT]]*Tableau5[[#This Row],[TAUX]] -> 14229.091 | F11: =+Tableau5[[#This Row],[M_HT]]+Tableau5[[#This Row],[TVA]] -> 156520.001 | G11: 3727455 | H11: TECNOSCIENCES | I11: 001528526000088 | J11: 0.1 | K11: 5 | L11: 2016-04-27 | M11: 2016-02-24
A12: 4 | B12: 2719 | C12: MARCHANDISE | D12: 38181.82 | E12: =+Tableau5[[#This Row],[M_HT]]*Tableau5[[#This Row],[TAUX]] -> 3818.182 | F12: =+Tableau5[[#This Row],[M_HT]]+Tableau5[[#This Row],[TVA]] -> 42000.002 | G12: 3701585 | H12: CENTRALE MAROC | I12: 001529852000026 | J12: 0.1 | K12: 5 | L12: 2016-04-07 | M12: 2016-02-12
A13: 5 | B13: 2727 | C13: MARCHANDISE | D13: 63636.36 | E13: =+Tableau5[[#This Row],[M_HT]]*Tableau5[[#This Row],[TAUX]] -> 6363.636 | F13: =+Tableau5[[#This Row],[M_HT]]+Tableau5[[#This Row],[TVA]] -> 69999.996 | G13: 3701504 | H13: CENTRALE MAROC | I13: 001529852000040 | J13: 0.1 | K13: 5 | L13: 2016-04-14 | M13: 2016-02-26
A14: 6 | B14: 2723 | C14: MARCHANDISE | D14: 63636.36 | E14: =+Tableau5[[#This Row],[M_HT]]*Tableau5[[#This Row],[TAUX]] -> 6363.636 | F14: =+Tableau5[[#This Row],[M_HT]]+Tableau5[[#This Row],[TVA]] -> 69999.996 | G14: 3701504 | H14: CENTRALE MAROC | I14: 001529852000059 | J14: 0.1 | K14: 5 | L14: 2016-04-27 | M14: 2016-02-19
A15: 7 | B15: 0765 | C15: MARCHANDISE | D15: 129090.91 | E15: =+Tableau5[[#This Row],[M_HT]]*Tableau5[[#This Row],[TAUX]] -> 12909.091 | F15: =+Tableau5[[#This Row],[M_HT]]+Tableau5[[#This Row],[TVA]] -> 142000.001 | G15: 3726545 | H15: TECNOS | I15: 001529756000069 | J15: 0.1 | K15: 5 | L15: 2016-04-06 | M15: 2016-02-15
A16: 8 | B16: 0326 | C16: MARCHANDISE | D16: 39556.37 | E16: =+Tableau5[[#This Row],[M_HT]]*Tableau5[[#This Row],[TAUX]] -> 3955.637 | F16: =+Tableau5[[#This Row],[M_HT]]+Tableau5[[#This Row],[TVA]] -> 43512.007 | G16: 40182429 | H16: ASMAR | I16: 001529756000069 | J16: 0.1 | K16: 2 | L16: 2016-04-22 | M16: 2016-03-16
A17: 9 | B17: 1828 | C17: MARCHANDISE | D17: 13255 | E17: =+Tableau5[[#This Row],[M_HT]]*Tableau5[[#This Row],[TAUX]] -> 2651 | F17: =+Tableau5[[#This Row],[M_HT]]+Tableau5[[#This Row],[TVA]] -> 15906 | G17: 2223243 | H17: MAD | I17: 001430353000049 | J17: 0.2 | K17: 2 | L17: 2016-04-26 | M17: 2016-02-20
A18: 10 | B18: 3467 | C18: MARCHANDISE | D18: 95571.6 | E18: =+Tableau5[[#This Row],[M_HT]]*Tableau5[[#This Row],[TAUX]] -> 19114.32 | F18: =+Tableau5[[#This Row],[M_HT]]+Tableau5[[#This Row],[TVA]] -> 114685.92 | G18: 3502802 | H18: BEL MAROC | I18: 001530549000087 | J18: 0.2 | K18: 5 | L18: 2016-04-28 | M18: 2016-03-21
A19: 11 | B19: 0653 | C19: CARBURANT | D19: 6272.8 | E19: =+Tableau5[[#This Row],[M_HT]]*Tableau5[[#This Row],[TAUX]] -> 627.28 | F19: =+Tableau5[[#This Row],[M_HT]]+Tableau5[[#This Row],[TVA]] -> 6900.08 | G19: 41611322 | H19: STATION OLIBYA | I19: EN COUR | J19: 0.1 | K19: 2 | L19: 2016-04-05 | M19: 2016-03-31
A20: 12 | B20: 0586 | C20: GARDINNAGE | D20: 400 | E20: =+Tableau5[[#This Row],[M_HT]]*Tableau5[[#This Row],[TAUX]] -> 80 | F20: =+Tableau5[[#This Row],[M_HT]]+Tableau5[[#This Row],[TVA]] -> 480 | G20: 1111807 | H20: CITEMAG | I20: EN COUR | J20: 0.2 | K20: 2 | L20: 2016-04-01 | M20: 2016-03-12
A21: 13 | B21: 2874 | C21: MARCHANDISE | D21: 64807.5 | E21: =+Tableau5[[#This Row],[M_HT]]*Tableau5[[#This Row],[TAUX]] -> 12961.5 | F21: =+Tableau5[[#This Row],[M_HT]]+Tableau5[[#This Row],[TVA]] -> 77769 | G21: 2330160 | H21: PAST | I21: 001511742000081 | J21: 0.2 | K21: 2 | L21: 2016-04-21 | M21: 2016-03-17
A22: 14 | B22: 0257 | C22: MARCHANDISE | D22: 46250 | E22: =+Tableau5[[#This Row],[M_HT]]*Tableau5[[#This Row],[TAUX]] -> 9250 | F22: =+Tableau5[[#This Row],[M_HT]]+Tableau5[[#This Row],[TVA]] -> 55500 | G22: 2800559 | H22: EBELLE | I22: 001514332000088 | J22: 0.2 | K22: 2 | L22: 2016-04-13 | M22: 2016-02-11
A23: 15 | B23: 0266 | C23: MARCHANDISE | D23: 18750 | E23: =+Tableau5[[#This Row],[M_HT]]*Tableau5[[#This Row],[TAUX]] -> 3750 | F23: =+Tableau5[[#This Row],[M_HT]]+Tableau5[[#This Row],[TVA]] -> 22500 | G23: 40182429 | H23: ASMAR | I23: EN COUR | J23: 0.2 | K23: 2 | L23: 2016-04-11 | M23: 2016-03-04
A24: 16 | B24: 2426 | C24: MARCHANDISE | D24: 149571.9 | E24: =+Tableau5[[#This Row],[M_HT]]*Tableau5[[#This Row],[TAUX]] -> 29914.38 | F24: =+Tableau5[[#This Row],[M_HT]]+Tableau5[[#This Row],[TVA]] -> 179486.28 | G24: 4902802 | H24: BEL MAROC | I24: 001530549000087 | J24: 0.2 | K24: 5 | L24: 2016-04-13 | M24: 2016-03-11
A25: 17 | B25: 2402 | C25: MARCHANDISE | D25: 44528 | E25: =+Tableau5[[#This Row],[M_HT]]*Tableau5[[#This Row],[TAUX]] -> 8905.6 | F25: =+Tableau5[[#This Row],[M_HT]]+Tableau5[[#This Row],[TVA]] -> 53433.6 | G25: 4902802 | H25: BEL MAROC | I25: 001530549000087 | J25: 0.2 | K25: 5 | L25: 2016-04-07 | M25: 2016-03-10
A26: 18 | B26: 7602 | C26: MARCHANDISE | D26: 30240 | E26: =+Tableau5[[#This Row],[M_HT]]*Tableau5[[#This Row],[TAUX]] -> 6048 | F26: =+Tableau5[[#This Row],[M_HT]]+Tableau5[[#This Row],[TVA]] -> 36288 | G26: 4200627 | H26: LES CONSERVES PM | I26: 001529756000061 | J26: 0.2 | K26: 5 | L26: 2016-04-28 | M26: 2016-03-05
A27: 19 | B27: 1719 | C27: MARCHANDISE | D27: 112146.1 | E27: =+Tableau5[[#This Row],[M_HT]]*Tableau5[[#This Row],[TAUX]] -> 22429.22 | F27: =+Tableau5[[#This Row],[M_HT]]+Tableau5[[#This Row],[TVA]] -> 134575.32 | G27: 3502802 | H27: BEL MAROC PM | I27: 001530549000087 | J27: 0.2 | K27: 5 | L27: 2016-04-06 | M27: 2016-03-04
A28: 20 | B28: 5420 | C28: TELEPHONE | D28: 429.17 | E28: =+Tableau5[[#This Row],[M_HT]]*Tableau5[[#This Row],[TAUX]] -> 85.834 | F28: =+Tableau5[[#This Row],[M_HT]]+Tableau5[[#This Row],[TVA]] -> 515.004 | G28: 3332162 | H28: IAM | I28: 001522585000066 | J28: 0.2 | K28: 2 | L28: 2016-04-22 | M28: 2016-03-11
A29: 21 | B29: 9064 | C29: TELEPHONE | D29: 335.67 | E29: =+Tableau5[[#This Row],[M_HT]]*Tableau5[[#This Row],[TAUX]] -> 67.134 | F29: =+Tableau5[[#This Row],[M_HT]]+Tableau5[[#This Row],[TVA]] -> 402.804 | G29: 3332162 | H29: IAM | I29: 001522585000066 | J29: 0.2 | K29: 2 | L29: 2016-04-22 | M29: 2016-04-01
A30: 22 | B30: 9063 | C30: TELEPHONE | D30: 242.96 | E30: =+Tableau5[[#This Row],[M_HT]]*Tableau5[[#This Row],[TAUX]] -> 48.592 | F30: =+Tableau5[[#This Row],[M_HT]]+Tableau5[[#This Row],[TVA]] -> 291.552 | G30: 3332162 | H30: IAM | I30: 001522585000066 | J30: 0.2 | K30: 2 | L30: 2016-04-22 | M30: 2016-04-01
A31: 23 | B31: 9065 | C31: INTERNET | D31: 165 | E31: =+Tableau5[[#This Row],[M_HT]]*Tableau5[[#This Row],[TAUX]] -> 33 | F31: =+Tableau5[[#This Row],[M_HT]]+Tableau5[[#This Row],[TVA]] -> 198 | G31: 3332162 | H31: IAM | I31: 001522585000066 | J31: 0.2 | K31: 2 | L31: 2016-04-22 | M31: 2016-04-01
A32: 24 | B32: 9068 | C32: TELEPHONE | D32: 375.64 | E32: =+Tableau5[[#This Row],[M_HT]]*Tableau5[[#This Row],[TAUX]] -> 75.128 | F32: =+Tableau5[[#This Row],[M_HT]]+Tableau5[[#This Row],[TVA]] -> 450.768 | G32: 3332162 | H32: IAM | I32: 001522585000066 | J32: 0.2 | K32: 2 | L32: 2016-04-22 | M32: 2016-04-01
A33: Total | D33: =SUBTOTAL(109,Tableau5[M_HT]) -> 1254421.91 | E33: =SUBTOTAL(109,Tableau5[TVA]) -> 202617.829 | F33: =SUBTOTAL(109,Tableau5[M_TTC]) -> 1457039.739 | P33: 2017 | Q33: 3
P34: 2018 | Q34: 4
P35: 2019 | Q35: 5
P36: 2020 | Q36: 6
P37: 2021 | Q37: 7
P38: 2022 | Q38: 8
P39: 2023 | Q39: 9
P40: 2024 | Q40: 10
P41: 2025 | Q41: 11
P42: 2026 | Q42: 12
